[Event "Titled Tuesday Blitz August 1 Late 2023"]
[White "Santos Flores, Alberto"]
[Black "Moroni, Luca Jr"]
[WhiteFideId "3601234"]
[BlackFideId "865834"]
[WhiteElo "2552"]
[BlackElo "2858"]
[Result "1/2-1/2"]
[Round "4"]
[TimeControl "180+1"]
[Date "2023.08.01"]
[WhiteClock "0:00:07"]
[BlackClock "0:00:04"]
[Board "32"]

1. e4 {[%clk 0:03:00]}  e5 {[%clk 0:01:39]} 2. Nf3 {[%clk 0:02:59]}  Nc6 {[%clk 0:01:39]} 3. Bb5 {[%clk 0:02:59]}  a6 {[%clk 0:01:38]} 4. Ba4 {[%clk 0:02:59]}  Nge7 {[%clk 0:01:39]} 5. O-O {[%clk 0:02:56]}  g6 {[%clk 0:01:36]} 6. c3 {[%clk 0:02:52]}  Bg7 {[%clk 0:01:36]} 7. d3 {[%clk 0:02:43]}  O-O {[%clk 0:01:10]} 8. Re1 {[%clk 0:02:43]}  h6 {[%clk 0:01:06]} 9. Nbd2 {[%clk 0:02:41]}  Kh7 {[%clk 0:01:05]} 10. Nf1 {[%clk 0:02:39]}  d5 {[%clk 0:01:05]} 11. Ng3 {[%clk 0:02:27]}  dxe4 {[%clk 0:00:54]} 12. dxe4 {[%clk 0:02:26]}  Bg4 {[%clk 0:00:53]} 13. h3 {[%clk 0:02:23]}  Qxd1 {[%clk 0:00:46]} 14. Bxd1 {[%clk 0:02:23]}  Bxf3 {[%clk 0:00:47]} 15. Bxf3 {[%clk 0:02:23]}  Rfd8 {[%clk 0:00:47]} 16. Be3 {[%clk 0:02:15]}  Rd7 {[%clk 0:00:45]} 17. Rad1 {[%clk 0:02:15]}  Rad8 {[%clk 0:00:35]} 18. Rxd7 {[%clk 0:02:14]}  Rxd7 {[%clk 0:00:36]} 19. Rd1 {[%clk 0:02:14]}  Rxd1+ {[%clk 0:00:33]} 20. Bxd1 {[%clk 0:02:15]}  Nc8 {[%clk 0:00:33]} 21. Bc5 {[%clk 0:02:08]}  Kg8 {[%clk 0:00:33]} 22. Bb3 {[%clk 0:02:04]}  Bf8 {[%clk 0:00:32]} 23. Be3 {[%clk 0:01:58]}  Kg7 {[%clk 0:00:30]} 24. Bd5 {[%clk 0:01:55]}  N8e7 {[%clk 0:00:29]} 25. Bb3 {[%clk 0:01:52]}  b6 {[%clk 0:00:24]} 26. Kf1 {[%clk 0:01:50]}  Na5 {[%clk 0:00:24]} 27. Bc2 {[%clk 0:01:41]}  Nc8 {[%clk 0:00:23]} 28. b3 {[%clk 0:01:35]}  Nb7 {[%clk 0:00:23]} 29. b4 {[%clk 0:01:21]}  a5 {[%clk 0:00:23]} 30. a3 {[%clk 0:01:20]}  axb4 {[%clk 0:00:23]} 31. axb4 {[%clk 0:01:21]}  Ncd6 {[%clk 0:00:23]} 32. Bd3 {[%clk 0:01:19]}  Nd8 {[%clk 0:00:18]} 33. Ke1 {[%clk 0:01:16]}  Ne6 {[%clk 0:00:18]} 34. Nf1 {[%clk 0:01:07]}  Be7 {[%clk 0:00:18]} 35. g3 {[%clk 0:01:02]}  Bg5 {[%clk 0:00:18]} 36. h4 {[%clk 0:00:59]}  Bxe3 {[%clk 0:00:18]} 37. Nxe3 {[%clk 0:01:00]}  g5 {[%clk 0:00:17]} 38. Nf5+ {[%clk 0:00:28]}  Nxf5 {[%clk 0:00:16]} 39. exf5 {[%clk 0:00:29]}  Nf8 {[%clk 0:00:17]} 40. hxg5 {[%clk 0:00:27]}  hxg5 {[%clk 0:00:17]} 41. Kd2 {[%clk 0:00:25]}  Kf6 {[%clk 0:00:17]} 42. g4 {[%clk 0:00:19]}  Ke7 {[%clk 0:00:16]} 43. Ke3 {[%clk 0:00:19]}  Kd6 {[%clk 0:00:17]} 44. Be4 {[%clk 0:00:17]}  Nd7 {[%clk 0:00:17]} 45. f3 {[%clk 0:00:17]}  Nf6 {[%clk 0:00:17]} 46. Kd3 {[%clk 0:00:17]}  b5 {[%clk 0:00:16]} 47. Ke3 {[%clk 0:00:17]}  c5 {[%clk 0:00:15]} 48. Kd3 {[%clk 0:00:16]}  Nd5 {[%clk 0:00:14]} 49. bxc5+ {[%clk 0:00:07]}  Kxc5 {[%clk 0:00:13]} 50. Bxd5 {[%clk 0:00:07]}  Kxd5 {[%clk 0:00:14]} 51. Ke3 {[%clk 0:00:07]}  Kc4 {[%clk 0:00:13]} 52. Kd2 {[%clk 0:00:07]}  Kb3 {[%clk 0:00:06]} 53. Kd3 {[%clk 0:00:06]}  f6 {[%clk 0:00:05]} 54. Kd2 {[%clk 0:00:05]}  Kb2 {[%clk 0:00:04]} 55. Kd3 {[%clk 0:00:05]}  Kb3 {[%clk 0:00:04]} 56. Kd2 {[%clk 0:00:05]}  Kc4 {[%clk 0:00:04]} 57. Kc2 {[%clk 0:00:05]}  b4 {[%clk 0:00:04]} 58. cxb4 {[%clk 0:00:05]}  Kxb4 {[%clk 0:00:05]} 59. Kd3 {[%clk 0:00:01]}  Kb3 {[%clk 0:00:05]} 60. Ke3 {[%clk 0:00:01]}  Kc3 {[%clk 0:00:06]} 61. Ke4 {[%clk 0:00:01]}  Kc4 {[%clk 0:00:04]} 62. Ke3 {[%clk 0:00:01]}  Kc3 {[%clk 0:00:04]} 63. Ke4 {[%clk 0:00:02]}  Kd2 {[%clk 0:00:05]} 64. Kd5 {[%clk 0:00:02]}  Ke3 {[%clk 0:00:06]} 65. Ke6 {[%clk 0:00:03]}  Kxf3 {[%clk 0:00:05]} 66. Kxf6 {[%clk 0:00:04]}  e4 {[%clk 0:00:06]} 67. Kxg5 {[%clk 0:00:05]}  e3 {[%clk 0:00:07]} 68. f6 {[%clk 0:00:06]}  e2 {[%clk 0:00:08]} 69. f7 {[%clk 0:00:06]}  e1=Q {[%clk 0:00:09]} 70. f8=Q+ {[%clk 0:00:07]}  Kg3 {[%clk 0:00:09]} 71. Qb8+ {[%clk 0:00:07]}  Kh3 {[%clk 0:00:10]} 72. Qf4 {[%clk 0:00:08]}  Qe7+ {[%clk 0:00:09]} 73. Qf6 {[%clk 0:00:08]}  Qc5+ {[%clk 0:00:09]} 74. Kg6 {[%clk 0:00:08]}  Qc2+ {[%clk 0:00:09]} 75. Qf5 {[%clk 0:00:08]}  Qc6+ {[%clk 0:00:09]} 76. Kg5 {[%clk 0:00:09]}  Qc1+ {[%clk 0:00:08]} 77. Kf6 {[%clk 0:00:08]}  Qc3+ {[%clk 0:00:08]} 78. Kg6 {[%clk 0:00:08]}  Qc6+ {[%clk 0:00:08]} 79. Kg7 {[%clk 0:00:08]}  Qc7+ {[%clk 0:00:08]} 80. Kf6 {[%clk 0:00:08]}  Qd8+ {[%clk 0:00:07]} 81. Ke5 {[%clk 0:00:08]}  Qe7+ {[%clk 0:00:08]} 82. Kf4 {[%clk 0:00:07]}  Qd6+ {[%clk 0:00:05]} 83. Qe5 {[%clk 0:00:06]}  Qb4+ {[%clk 0:00:04]} 84. Kf5 {[%clk 0:00:06]}  Qf8+ {[%clk 0:00:04]} 85. Qf6 {[%clk 0:00:05]}  Qc8+ {[%clk 0:00:04]} 86. Qe6 {[%clk 0:00:06]}  Qc5+ {[%clk 0:00:03]} 87. Qe5 {[%clk 0:00:06]}  Qc2+ {[%clk 0:00:03]} 88. Qe4 {[%clk 0:00:05]}  Qc8+ {[%clk 0:00:03]} 89. Kf6 {[%clk 0:00:05]}  Qd8+ {[%clk 0:00:03]} 90. Kf5 {[%clk 0:00:04]}  Qc8+ {[%clk 0:00:01]} 91. Kf6 {[%clk 0:00:04]}  Qf8+ {[%clk 0:00:02]} 92. Ke5 {[%clk 0:00:04]}  Kh4 {[%clk 0:00:03]} 93. Qf5 {[%clk 0:00:04]}  Qe7+ {[%clk 0:00:02]} 94. Kf4 {[%clk 0:00:04]}  Qd6+ {[%clk 0:00:02]} 95. Ke4 {[%clk 0:00:04]}  Qc6+ {[%clk 0:00:02]} 96. Kf4 {[%clk 0:00:05]}  Qc4+ {[%clk 0:00:02]} 97. Ke5 {[%clk 0:00:04]}  Qc5+ {[%clk 0:00:03]} 98. Ke4 {[%clk 0:00:04]}  Qc2+ {[%clk 0:00:03]} 99. Ke5 {[%clk 0:00:04]}  Qe2+ {[%clk 0:00:03]} 100. Qe4 {[%clk 0:00:04]}  Qb5+ {[%clk 0:00:03]} 101. Ke6 {[%clk 0:00:04]}  Qe8+ {[%clk 0:00:03]} 102. Kd5 {[%clk 0:00:04]}  Qd7+ {[%clk 0:00:03]} 103. Ke5 {[%clk 0:00:04]}  Qe7+ {[%clk 0:00:03]} 104. Kd5 {[%clk 0:00:04]}  Qf7+ {[%clk 0:00:03]} 105. Ke5 {[%clk 0:00:04]}  Qg7+ {[%clk 0:00:03]} 106. Kd5 {[%clk 0:00:04]}  Qg8+ {[%clk 0:00:04]} 107. Ke5 {[%clk 0:00:05]}  Qd8 {[%clk 0:00:04]} 108. Qf5 {[%clk 0:00:04]}  Qc7+ {[%clk 0:00:04]} 109. Ke4 {[%clk 0:00:05]}  Qc4+ {[%clk 0:00:04]} 110. Ke5 {[%clk 0:00:05]}  Qc3+ {[%clk 0:00:04]} 111. Ke4 {[%clk 0:00:06]}  Kg3 {[%clk 0:00:04]} 112. Kd5 {[%clk 0:00:05]}  Qb3+ {[%clk 0:00:04]} 113. Ke5 {[%clk 0:00:05]}  Qb8+ {[%clk 0:00:04]} 114. Kd5 {[%clk 0:00:05]}  Qa8+ {[%clk 0:00:04]} 115. Ke6 {[%clk 0:00:05]}  Qc6+ {[%clk 0:00:04]} 116. Ke5 {[%clk 0:00:06]}  Qc3+ {[%clk 0:00:04]} 117. Ke6 {[%clk 0:00:06]}  Qc4+ {[%clk 0:00:04]} 118. Ke5 {[%clk 0:00:07]}  Qe2+ {[%clk 0:00:04]} 119. Kd6 {[%clk 0:00:07]}  Qd2+ {[%clk 0:00:04]} 120. Ke6 {[%clk 0:00:07]} 1/2-1/2


[Site "https://www.chess.com"]

[Event "Titled Tuesday Blitz August 1 Late 2023"]
[White "Keleberda, Tymur"]
[Black "Zierk, Steven"]
[WhiteFideId "14174294"]
[BlackFideId "2034255"]
[WhiteElo "2547"]
[BlackElo "2835"]
[Result "0-1"]
[Round "4"]
[TimeControl "180+1"]
[Date "2023.08.01"]
[WhiteClock "0:00:18"]
[BlackClock "0:00:26"]
[Board "34"]

1. e4 {[%clk 0:03:00]}  e6 {[%clk 0:03:00]} 2. d4 {[%clk 0:03:00]}  d5 {[%clk 0:03:00]} 3. Nc3 {[%clk 0:03:01]}  Bb4 {[%clk 0:02:59]} 4. e5 {[%clk 0:03:01]}  c5 {[%clk 0:03:00]} 5. a3 {[%clk 0:03:01]}  Bxc3+ {[%clk 0:03:00]} 6. bxc3 {[%clk 0:03:02]}  Qa5 {[%clk 0:03:00]} 7. Bd2 {[%clk 0:02:54]}  Qa4 {[%clk 0:03:00]} 8. Qg4 {[%clk 0:02:51]}  Kf8 {[%clk 0:03:00]} 9. Nf3 {[%clk 0:02:29]}  Qxc2 {[%clk 0:02:57]} 10. dxc5 {[%clk 0:02:29]}  Nd7 {[%clk 0:02:54]} 11. Bb5 {[%clk 0:02:23]}  Qe4+ {[%clk 0:02:46]} 12. Qxe4 {[%clk 0:02:21]}  dxe4 {[%clk 0:02:47]} 13. Bxd7 {[%clk 0:02:21]}  exf3 {[%clk 0:02:39]} 14. Bxc8 {[%clk 0:02:21]}  fxg2 {[%clk 0:02:39]} 15. Rg1 {[%clk 0:02:21]}  Rxc8 {[%clk 0:02:39]} 16. Be3 {[%clk 0:02:22]}  Ne7 {[%clk 0:02:34]} 17. Rxg2 {[%clk 0:02:22]}  Nf5 {[%clk 0:02:29]} 18. Bd4 {[%clk 0:02:22]}  Ke7 {[%clk 0:02:28]} 19. Rb1 {[%clk 0:02:19]}  Rc7 {[%clk 0:02:25]} 20. Rb4 {[%clk 0:02:14]}  Kd7 {[%clk 0:02:14]} 21. Rg4 {[%clk 0:02:09]}  Kc6 {[%clk 0:02:12]} 22. Ke2 {[%clk 0:02:10]}  h5 {[%clk 0:02:11]} 23. Rg1 {[%clk 0:02:01]}  h4 {[%clk 0:02:09]} 24. h3 {[%clk 0:02:00]}  g6 {[%clk 0:02:04]} 25. Kf3 {[%clk 0:02:00]}  Rd8 {[%clk 0:02:01]} 26. Ke4 {[%clk 0:02:00]}  Kd7 {[%clk 0:01:58]} 27. Rgb1 {[%clk 0:01:59]}  Kc8 {[%clk 0:01:57]} 28. Ra4 {[%clk 0:01:58]}  a6 {[%clk 0:01:56]} 29. Rab4 {[%clk 0:01:52]}  Ne7 {[%clk 0:01:52]} 30. Rb6 {[%clk 0:01:50]}  Nc6 {[%clk 0:01:46]} 31. Rd1 {[%clk 0:01:34]}  Rcd7 {[%clk 0:01:45]} 32. Rd3 {[%clk 0:01:27]}  f5+ {[%clk 0:01:33]} 33. Kf4 {[%clk 0:01:13]}  g5+ {[%clk 0:01:09]} 34. Kxg5 {[%clk 0:01:10]}  Rg8+ {[%clk 0:01:09]} 35. Kf4 {[%clk 0:00:57]}  Rg1 {[%clk 0:01:08]} 36. Rb2 {[%clk 0:00:49]}  Re1 {[%clk 0:00:59]} 37. Rbd2 {[%clk 0:00:36]}  Ne7 {[%clk 0:00:35]} 38. c4 {[%clk 0:00:32]}  Ng6+ {[%clk 0:00:29]} 39. Kg5 {[%clk 0:00:31]}  Rg1+ {[%clk 0:00:29]} 40. Kf6 {[%clk 0:00:31]}  Nf8 {[%clk 0:00:28]} 41. Rg3 {[%clk 0:00:19]}  hxg3 {[%clk 0:00:28]} 42. fxg3 {[%clk 0:00:19]}  Rxg3 {[%clk 0:00:27]} 43. c6 {[%clk 0:00:18]}  Rg6# {[%clk 0:00:26]} 0-1


[Site "https://www.chess.com"]

[Event "Titled Tuesday Blitz August 1 Late 2023"]
[White "Grinev, Valeriy"]
[Black "Grigorov, Grigor"]
[WhiteFideId "14117517"]
[BlackFideId "2907313"]
[WhiteElo "2543"]
[BlackElo "2780"]
[Result "0-1"]
[Round "4"]
[TimeControl "180+1"]
[Date "2023.08.01"]
[WhiteClock "0:01:24"]
[BlackClock "0:01:26"]
[Board "35"]

1. Nf3 {[%clk 0:02:54]}  Nf6 {[%clk 0:02:59]} 2. c4 {[%clk 0:02:53]}  b6 {[%clk 0:02:58]} 3. Nc3 {[%clk 0:02:54]}  Bb7 {[%clk 0:02:58]} 4. d4 {[%clk 0:02:55]}  e6 {[%clk 0:02:58]} 5. g3 {[%clk 0:02:54]}  Be7 {[%clk 0:02:55]} 6. Bg2 {[%clk 0:02:54]}  Ne4 {[%clk 0:02:54]} 7. Nxe4 {[%clk 0:02:53]}  Bxe4 {[%clk 0:02:54]} 8. O-O {[%clk 0:02:54]}  O-O {[%clk 0:02:53]} 9. Bf4 {[%clk 0:02:54]}  d6 {[%clk 0:02:49]} 10. b3 {[%clk 0:02:53]}  Nd7 {[%clk 0:02:44]} 11. Bc1 {[%clk 0:02:53]}  c5 {[%clk 0:02:42]} 12. Bb2 {[%clk 0:02:53]}  Qc7 {[%clk 0:02:36]} 13. e3 {[%clk 0:02:52]}  Nf6 {[%clk 0:02:34]} 14. Qd2 {[%clk 0:02:51]}  Qb7 {[%clk 0:02:30]} 15. Ne1 {[%clk 0:02:48]}  Bxg2 {[%clk 0:02:30]} 16. Nxg2 {[%clk 0:02:46]}  cxd4 {[%clk 0:02:28]} 17. Qxd4 {[%clk 0:02:44]}  Rfd8 {[%clk 0:02:26]} 18. Rfd1 {[%clk 0:02:43]}  Rac8 {[%clk 0:02:26]} 19. Rac1 {[%clk 0:02:43]}  a6 {[%clk 0:02:25]} 20. a4 {[%clk 0:02:43]}  Bf8 {[%clk 0:02:23]} 21. h4 {[%clk 0:02:40]}  Ne4 {[%clk 0:02:21]} 22. h5 {[%clk 0:02:37]}  Ng5 {[%clk 0:02:17]} 23. Nh4 {[%clk 0:02:35]}  Nh3+ {[%clk 0:02:03]} 24. Kf1 {[%clk 0:02:33]}  h6 {[%clk 0:01:59]} 25. Qg4 {[%clk 0:02:28]}  Ng5 {[%clk 0:01:53]} 26. f4 {[%clk 0:02:19]}  Qh1+ {[%clk 0:01:47]} 27. Kf2 {[%clk 0:02:16]}  Ne4+ {[%clk 0:01:44]} 28. Ke2 {[%clk 0:02:16]}  Qh2+ {[%clk 0:01:43]} 29. Kf3 {[%clk 0:02:00]}  Qxb2 {[%clk 0:01:35]} 30. f5 {[%clk 0:01:26]}  Ng5+ {[%clk 0:01:26]} 31. Kf4 {[%clk 0:01:24]}  e5# {[%clk 0:01:26]} 0-1


[Site "https://www.chess.com"]

[Event "Titled Tuesday Blitz August 1 Late 2023"]
[White "Dobrikov, Marco"]
[Black "Nazari, Arad"]
[WhiteFideId "12950378"]
[BlackFideId "12577324"]
[WhiteElo "2542"]
[BlackElo "2772"]
[Result "1-0"]
[Round "4"]
[TimeControl "180+1"]
[Date "2023.08.01"]
[WhiteClock "0:02:10"]
[BlackClock "0:00:22"]
[Board "36"]

1. d4 {[%clk 0:02:58]}  Nf6 {[%clk 0:01:54]} 2. Bf4 {[%clk 0:02:53]}  e6 {[%clk 0:01:52]} 3. e3 {[%clk 0:02:53]}  c5 {[%clk 0:01:52]} 4. c3 {[%clk 0:02:53]}  cxd4 {[%clk 0:01:51]} 5. exd4 {[%clk 0:02:54]}  Be7 {[%clk 0:01:52]} 6. Bd3 {[%clk 0:02:55]}  O-O {[%clk 0:01:53]} 7. Nd2 {[%clk 0:02:55]}  d6 {[%clk 0:01:52]} 8. Ngf3 {[%clk 0:02:52]}  b6 {[%clk 0:01:52]} 9. Qc2 {[%clk 0:02:52]}  Bb7 {[%clk 0:01:49]} 10. O-O-O {[%clk 0:02:52]}  Nbd7 {[%clk 0:01:43]} 11. Kb1 {[%clk 0:02:52]}  a6 {[%clk 0:01:42]} 12. Rhg1 {[%clk 0:02:49]}  b5 {[%clk 0:01:43]} 13. g4 {[%clk 0:02:49]}  b4 {[%clk 0:01:43]} 14. c4 {[%clk 0:02:48]}  g6 {[%clk 0:01:40]} 15. h4 {[%clk 0:02:47]}  Rc8 {[%clk 0:01:37]} 16. h5 {[%clk 0:02:43]}  Kg7 {[%clk 0:01:06]} 17. hxg6 {[%clk 0:02:31]}  hxg6 {[%clk 0:01:07]} 18. Bh6+ {[%clk 0:02:20]}  Kxh6 {[%clk 0:01:05]} 19. g5+ {[%clk 0:02:21]}  Kg7 {[%clk 0:00:43]} 20. gxf6+ {[%clk 0:02:21]}  Kxf6 {[%clk 0:00:36]} 21. Bxg6 {[%clk 0:02:19]}  Rg8 {[%clk 0:00:31]} 22. Ne4+ {[%clk 0:02:13]}  Bxe4 {[%clk 0:00:30]} 23. Bxe4 {[%clk 0:02:12]}  Qa5 {[%clk 0:00:27]} 24. Qd2 {[%clk 0:02:10]}  Qh5 {[%clk 0:00:22]} 25. Qf4+ {[%clk 0:02:10]} 1-0


[Site "https://www.chess.com"]

[Event "Titled Tuesday Blitz August 1 Late 2023"]
[White "Mladek, Richard"]
[Black "Kushko, Dmitriy"]
[WhiteFideId "386588"]
[BlackFideId "14162261"]
[WhiteElo "2541"]
[BlackElo "2771"]
[Result "0-1"]
[Round "4"]
[TimeControl "180+1"]
[Date "2023.08.01"]
[WhiteClock "0:00:00"]
[BlackClock "0:00:04"]
[Board "37"]

1. Nf3 {[%clk 0:03:00]}  g6 {[%clk 0:03:00]} 2. e4 {[%clk 0:02:59]}  Bg7 {[%clk 0:03:00]} 3. d4 {[%clk 0:02:59]}  d6 {[%clk 0:03:00]} 4. Nc3 {[%clk 0:02:57]}  Nf6 {[%clk 0:03:00]} 5. Be2 {[%clk 0:02:58]}  O-O {[%clk 0:02:54]} 6. O-O {[%clk 0:02:58]}  a6 {[%clk 0:02:54]} 7. a4 {[%clk 0:02:55]}  Nc6 {[%clk 0:02:54]} 8. a5 {[%clk 0:02:54]}  Re8 {[%clk 0:02:51]} 9. d5 {[%clk 0:02:51]}  Ne5 {[%clk 0:02:50]} 10. Nxe5 {[%clk 0:02:51]}  dxe5 {[%clk 0:02:50]} 11. Qd3 {[%clk 0:02:49]}  e6 {[%clk 0:02:49]} 12. Qc4 {[%clk 0:02:30]}  exd5 {[%clk 0:02:47]} 13. exd5 {[%clk 0:02:31]}  Bf5 {[%clk 0:02:39]} 14. Be3 {[%clk 0:02:05]}  Bxc2 {[%clk 0:02:29]} 15. Rac1 {[%clk 0:02:05]}  Bf5 {[%clk 0:02:28]} 16. g4 {[%clk 0:02:06]}  Bd7 {[%clk 0:02:16]} 17. g5 {[%clk 0:01:54]}  Nh5 {[%clk 0:02:16]} 18. Qh4 {[%clk 0:01:32]}  Nf4 {[%clk 0:02:10]} 19. Bc4 {[%clk 0:01:19]}  h6 {[%clk 0:02:03]} 20. Ne4 {[%clk 0:01:15]}  Bb5 {[%clk 0:00:41]} 21. Nf6+ {[%clk 0:00:54]}  Bxf6 {[%clk 0:00:41]} 22. gxf6 {[%clk 0:00:54]}  Bxc4 {[%clk 0:00:39]} 23. Bxf4 {[%clk 0:00:38]}  exf4 {[%clk 0:00:33]} 24. Rxc4 {[%clk 0:00:36]}  Re5 {[%clk 0:00:25]} 25. Rxf4 {[%clk 0:00:33]}  Qf8 {[%clk 0:00:23]} 26. Rd1 {[%clk 0:00:27]}  Rd8 {[%clk 0:00:21]} 27. Rfd4 {[%clk 0:00:22]}  Kh7 {[%clk 0:00:20]} 28. Kh1 {[%clk 0:00:21]}  Qd6 {[%clk 0:00:19]} 29. R4d3 {[%clk 0:00:16]}  Rf5 {[%clk 0:00:18]} 30. Rh3 {[%clk 0:00:11]}  Rh5 {[%clk 0:00:18]} 31. Qg4 {[%clk 0:00:09]}  Rxh3 {[%clk 0:00:18]} 32. Qxh3 {[%clk 0:00:10]}  Qxf6 {[%clk 0:00:18]} 33. Qg3 {[%clk 0:00:08]}  Rd6 {[%clk 0:00:18]} 34. b4 {[%clk 0:00:07]}  Qf5 {[%clk 0:00:17]} 35. Kg1 {[%clk 0:00:05]}  h5 {[%clk 0:00:17]} 36. Rd3 {[%clk 0:00:04]}  Kg7 {[%clk 0:00:12]} 37. h3 {[%clk 0:00:04]}  Qf6 {[%clk 0:00:11]} 38. Rf3 {[%clk 0:00:02]}  Qd4 {[%clk 0:00:10]} 39. Rd3 {[%clk 0:00:01]}  Qe4 {[%clk 0:00:09]} 40. Re3 {[%clk 0:00:01]}  Qxd5 {[%clk 0:00:09]} 41. Kh2 {[%clk 0:00:02]}  Qf5 {[%clk 0:00:09]} 42. Re5 {[%clk 0:00:02]}  Qf6 {[%clk 0:00:09]} 43. Qe3 {[%clk 0:00:02]}  Re6 {[%clk 0:00:08]} 44. f4 {[%clk 0:00:01]}  Rxe5 {[%clk 0:00:08]} 45. fxe5 {[%clk 0:00:02]}  Qe6 {[%clk 0:00:09]} 46. Qd4 {[%clk 0:00:03]}  Kh7 {[%clk 0:00:05]} 47. Qc3 {[%clk 0:00:04]}  c6 {[%clk 0:00:05]} 48. Kg3 {[%clk 0:00:05]}  Qd5 {[%clk 0:00:05]} 49. Qe3 {[%clk 0:00:05]}  Kg7 {[%clk 0:00:04]} 50. Qf4 {[%clk 0:00:05]}  Kf8 {[%clk 0:00:04]} 51. Qf6 {[%clk 0:00:05]}  Qe6 {[%clk 0:00:05]} 52. Qh8+ {[%clk 0:00:05]}  Ke7 {[%clk 0:00:05]} 53. Kf2 {[%clk 0:00:04]}  Qf5+ {[%clk 0:00:05]} 54. Ke3 {[%clk 0:00:05]}  Qe6 {[%clk 0:00:04]} 55. Kd4 {[%clk 0:00:06]}  Qd5+ {[%clk 0:00:04]} 56. Ke3 {[%clk 0:00:07]}  Kd7 {[%clk 0:00:04]} 57. h4 {[%clk 0:00:06]}  Qb5 {[%clk 0:00:04]} 58. Qf8 {[%clk 0:00:06]}  Ke6 {[%clk 0:00:04]} 59. Qd6+ {[%clk 0:00:05]}  Kf5 {[%clk 0:00:03]} 60. Qf6+ {[%clk 0:00:06]}  Kg4 {[%clk 0:00:04]} 61. Qf4+ {[%clk 0:00:07]}  Kh3 {[%clk 0:00:04]} 62. Kf2 {[%clk 0:00:05]}  Qd3 {[%clk 0:00:02]} 63. Qxf7 {[%clk 0:00:03]}  Qd4+ {[%clk 0:00:01]} 64. Kf3 {[%clk 0:00:01]}  Qxe5 {[%clk 0:00:02]} 65. Qxg6 {[%clk 0:00:01]}  Qc3+ {[%clk 0:00:01]} 66. Kf4 {[%clk 0:00:01]}  Qd4+ {[%clk 0:00:02]} 67. Kf3 {[%clk 0:00:02]}  Qg4+ {[%clk 0:00:02]} 68. Qxg4+ {[%clk 0:00:02]}  hxg4+ {[%clk 0:00:03]} 69. Kf4 {[%clk 0:00:00]}  Kxh4 {[%clk 0:00:04]} 0-1


[Site "https://www.chess.com"]

[Event "Titled Tuesday Blitz August 1 Late 2023"]
[White "Yanchenko, Roman"]
[Black "Berezin, Viktor"]
[WhiteFideId "4137329"]
[BlackFideId "14107872"]
[WhiteElo "2729"]
[BlackElo "2526"]
[Result "0-1"]
[Round "4"]
[TimeControl "180+1"]
[Date "2023.08.01"]
[WhiteClock "0:00:19"]
[BlackClock "0:01:24"]
[Board "41"]

1. d4 {[%clk 0:01:34]}  Nf6 {[%clk 0:02:58]} 2. Nf3 {[%clk 0:01:34]}  g6 {[%clk 0:02:57]} 3. c4 {[%clk 0:01:34]}  Bg7 {[%clk 0:02:58]} 4. Nc3 {[%clk 0:01:34]}  O-O {[%clk 0:02:58]} 5. Bf4 {[%clk 0:01:33]}  d6 {[%clk 0:02:59]} 6. e3 {[%clk 0:01:33]}  b6 {[%clk 0:02:58]} 7. Be2 {[%clk 0:01:34]}  Bb7 {[%clk 0:02:58]} 8. O-O {[%clk 0:01:34]}  Nbd7 {[%clk 0:02:59]} 9. h3 {[%clk 0:01:34]}  Ne4 {[%clk 0:02:57]} 10. Nxe4 {[%clk 0:01:33]}  Bxe4 {[%clk 0:02:58]} 11. Bg3 {[%clk 0:01:33]}  Bb7 {[%clk 0:02:58]} 12. Qc2 {[%clk 0:01:30]}  e6 {[%clk 0:02:58]} 13. Rfd1 {[%clk 0:01:30]}  Qe7 {[%clk 0:02:56]} 14. Rac1 {[%clk 0:01:30]}  f5 {[%clk 0:02:50]} 15. b4 {[%clk 0:01:22]}  a5 {[%clk 0:02:50]} 16. a3 {[%clk 0:01:21]}  axb4 {[%clk 0:02:50]} 17. axb4 {[%clk 0:01:22]}  Be4 {[%clk 0:02:50]} 18. Qb3 {[%clk 0:01:20]}  g5 {[%clk 0:02:47]} 19. c5 {[%clk 0:01:07]}  f4 {[%clk 0:02:22]} 20. exf4 {[%clk 0:01:07]}  gxf4 {[%clk 0:02:23]} 21. Bh4 {[%clk 0:01:07]}  Bf6 {[%clk 0:02:02]} 22. Bxf6 {[%clk 0:01:02]}  Nxf6 {[%clk 0:02:02]} 23. cxb6 {[%clk 0:00:53]}  cxb6 {[%clk 0:02:01]} 24. Ng5 {[%clk 0:00:53]}  Bd5 {[%clk 0:01:59]} 25. Bc4 {[%clk 0:00:54]}  h6 {[%clk 0:01:53]} 26. Bxd5 {[%clk 0:00:50]}  Nxd5 {[%clk 0:01:52]} 27. Re1 {[%clk 0:00:46]}  Qxg5 {[%clk 0:01:45]} 28. Rxe6 {[%clk 0:00:41]}  f3 {[%clk 0:01:43]} 29. Rg6+ {[%clk 0:00:36]}  Qxg6 {[%clk 0:01:39]} 30. Qxd5+ {[%clk 0:00:37]}  Kh8 {[%clk 0:01:33]} 31. g4 {[%clk 0:00:37]}  Rac8 {[%clk 0:01:31]} 32. Re1 {[%clk 0:00:35]}  Rce8 {[%clk 0:01:31]} 33. Ra1 {[%clk 0:00:34]}  Re7 {[%clk 0:01:27]} 34. Kh2 {[%clk 0:00:19]}  Qf6 {[%clk 0:01:24]} 0-1


[Site "https://www.chess.com"]

[Event "Titled Tuesday Blitz August 1 Late 2023"]
[White "Prado Lobo, Jonas"]
[Black "only_strong_moves"]
[WhiteFideId "32050666"]
[WhiteElo "2518"]
[BlackElo "2709"]
[Result "0-1"]
[Round "4"]
[TimeControl "180+1"]
[Date "2023.08.01"]
[WhiteClock "0:01:27"]
[BlackClock "0:01:18"]
[Board "45"]

1. e4 {[%clk 0:02:58]}  e5 {[%clk 0:02:59]} 2. Nf3 {[%clk 0:02:58]}  Nc6 {[%clk 0:03:00]} 3. Bb5 {[%clk 0:02:53]}  Nf6 {[%clk 0:03:00]} 4. d3 {[%clk 0:02:52]}  Bc5 {[%clk 0:02:59]} 5. O-O {[%clk 0:02:49]}  d6 {[%clk 0:02:59]} 6. h3 {[%clk 0:02:49]}  O-O {[%clk 0:02:58]} 7. Re1 {[%clk 0:02:47]}  h6 {[%clk 0:02:56]} 8. c3 {[%clk 0:02:46]}  Bb6 {[%clk 0:02:56]} 9. Nbd2 {[%clk 0:02:44]}  Bd7 {[%clk 0:02:54]} 10. Nf1 {[%clk 0:02:43]}  Nh5 {[%clk 0:02:36]} 11. Bxc6 {[%clk 0:02:35]}  Bxc6 {[%clk 0:02:36]} 12. Nxe5 {[%clk 0:02:35]}  dxe5 {[%clk 0:02:36]} 13. Qxh5 {[%clk 0:02:30]}  Qxd3 {[%clk 0:02:36]} 14. Bxh6 {[%clk 0:02:29]}  gxh6 {[%clk 0:02:25]} 15. Qxh6 {[%clk 0:02:30]}  Bxe4 {[%clk 0:02:25]} 16. Rad1 {[%clk 0:02:27]}  Qa6 {[%clk 0:02:20]} 17. Qg5+ {[%clk 0:01:55]}  Bg6 {[%clk 0:02:20]} 18. Rxe5 {[%clk 0:01:55]}  Rae8 {[%clk 0:02:05]} 19. h4 {[%clk 0:01:45]}  Rxe5 {[%clk 0:01:30]} 20. Qxe5 {[%clk 0:01:46]}  Qa4 {[%clk 0:01:30]} 21. h5 {[%clk 0:01:38]}  Qxd1 {[%clk 0:01:25]} 22. hxg6 {[%clk 0:01:27]}  Bxf2+ {[%clk 0:01:18]} 0-1


[Site "https://www.chess.com"]